bitfinex/quotes_ETHUSD_20250314
["timestamp","ask_amount","ask_price","bid_price","bid_amount"]
[1741969415822,5.17625,1931.9,1931.8,0.52285215]
[1741969416007,5.17656,1931.8,1931.5,6.7522]
[1741969416684,5.17656,1931.8,1931.5,11.92951]
[1741969417215,5.17631,1931.9,1931.5,11.9295]
[1741969417403,5.17631,1931.9,1931.6,5.22880216]
[1741969417610,5.17631,1931.9,1931.6,0.05176216]
[1741969417797,5.9439,1932.3,1931.6,6.79812992]
[1741969417798,0.7685,1932.3,1931.6,6.79812992]
[1741969417997,5.17555,1932.2,1931.8,5.97423]
[1741969418210,5.17574,1932.1,1931.8,0.7979]
[1741969418719,11.48377,1932.3,1931.8,0.7979]
[1741969418919,5.17604,1932.0,1931.8,0.7979]
[1741969419130,5.17604,1932.0,1931.8,0.84965746]
[1741969419339,5.17625,1931.9,1931.8,1.23462321]
[1741969419503,5.17663,1931.8,1931.6,8.34802776]
[1741969419994,5.17625,1931.9,1931.6,8.34802776]
[1741969420612,5.17654,1931.8,1931.6,8.34802776]
[1741969421792,5.17654,1931.8,1931.6,6.7787]
[1741969423335,10.35326,1931.8,1931.6,6.7787]
[1741969423712,5.17654,1931.8,1931.6,6.7787]
[1741969423915,5.17654,1931.8,1931.6,0.7887]
[1741969424713,5.17759,1931.4,1931.3,6.7545]
[1741969425430,10.71579,1931.7,1931.3,16.31970543]
[1741969425632,5.17721,1931.6,1931.3,11.14196543]
[1741969426091,15.89269,1931.7,1931.3,16.31970543]
[1741969426295,15.89269,1931.7,1931.4,0.05176741]
[1741969426495,5.539,1931.7,1931.4,0.05176741]
[1741969426696,5.17639,1931.9,1931.6,0.7665]
[1741969426902,0.7826,1932.5,1931.7,9.75377762]
[1741969427104,5.17555,1932.2,1931.8,3.0]
[1741969427303,5.17555,1932.2,1931.9,0.7842]
[1741969427630,5.1758,1932.1,1931.9,0.7842]
[1741969427825,5.1758,1932.1,1931.9,1.16262]
[1741969429951,5.17598,1932.0,1931.9,0.37842]
[1741969430232,5.17598,1932.0,1931.7,15.70887543]
[1741969430233,5.17638,1931.9,1931.7,6.8203]
[1741969431100,5.176,1932.0,1931.8,0.05175996]
[1741969431306,5.176,1932.0,1931.8,0.73896596]
[1741969431512,5.17625,1931.9,1931.8,0.687206]
[1741969432406,5.17625,1931.9,1931.7,6.8203]
[1741969432612,5.17625,1931.9,1931.7,6.87205997]
[1741969433739,5.17625,1931.9,1931.7,6.8203]
[1741969434041,5.17651,1931.8,1931.7,5.99]
[1741969434807,5.17625,1931.9,1931.3,5.99]
[1741969435052,5.17785,1931.3,1931.2,5.99]
[1741969435347,5.17762,1931.4,1931.1,5.99]
[1741969435559,5.17791,1931.3,1931.2,0.05177503]
[1741969435856,5.17791,1931.3,1931.1,5.99]
[1741969436012,10.35595,1931.3,1931.1,5.99]
[1741969436407,5.17812,1931.2,1931.1,5.99]
[1741969436910,5.17733,1931.5,1931.2,0.7952]
[1741969438515,5.1777,1931.4,1931.2,6.7852]
[1741969438822,5.17733,1931.5,1931.2,6.7852]
[1741969439022,5.17708,1931.6,1931.2,11.96322]
[1741969439222,5.17741,1931.5,1931.2,11.96322]
[1741969439416,5.17678,1931.7,1931.4,5.17758]
[1741969439618,5.17626,1931.9,1931.3,1.196322]
[1741969439619,0.769,1931.9,1931.3,1.196322]
[1741969439954,5.17772,1931.4,1931.2,6.7852]
[1741969440451,5.17772,1931.4,1931.3,0.48542119]
[1741969441020,5.17772,1931.4,1931.3,0.87375907]
[1741969441443,5.17772,1931.4,1931.3,0.38833788]
[1741969441646,5.17785,1931.3,1931.2,5.99]
[1741969441846,5.1783,1931.2,1931.0,6.8638582]
[1741969442047,5.17763,1931.4,1931.0,16.82040945]
[1741969442351,5.17734,1931.5,1931.0,11.25359157]
[1741969442542,5.17734,1931.5,1931.1,5.1783]
[1741969442739,5.17734,1931.5,1931.1,5.17825]
[1741969442932,5.17734,1931.5,1931.2,5.17803]
[1741969443256,5.94606,1931.6,1931.3,0.517803]
[1741969443456,10.35435,1931.6,1931.4,0.05177029]
[1741969443653,5.17732,1931.5,1931.4,0.05177029]
[1741969443856,5.17732,1931.5,1931.3,0.517803]
[1741969444629,5.17732,1931.5,1931.2,0.8104]
[1741969444941,5.17829,1931.2,1931.0,7.05605582]
[1741969445150,5.17827,1931.2,1931.0,5.99]
[1741969445327,5.17789,1931.3,1931.0,5.99]
[1741969445854,5.17789,1931.3,1931.0,9.70201543]
[1741969446056,5.1774,1931.5,1931.2,5.17804]
[1741969446258,10.35491,1931.5,1931.3,0.517804]
[1741969446454,5.1774,1931.5,1931.3,0.517804]
[1741969446634,10.35437,1931.6,1931.1,5.95955]
[1741969446830,6.2886,1931.8,1931.3,5.17776]
[1741969446831,5.17681,1931.7,1931.3,5.17776]
[1741969447031,0.7526,1931.8,1931.4,5.22933898]
[1741969447230,5.92921,1931.8,1931.4,10.355]
[1741969447431,5.92921,1931.8,1931.5,5.17726]
[1741969447638,5.92921,1931.8,1931.6,0.517726]
[1741969447944,5.17464,1932.5,1931.7,0.05176485]
[1741969448150,5.93643,1932.3,1931.8,5.17641]
[1741969448463,10.35122,1932.2,1931.8,5.17641]
[1741969448663,10.35122,1932.2,1931.9,0.517641]
[1741969448857,0.7611,1932.3,1932.0,0.051755]
[1741969448858,5.93628,1932.3,1932.0,0.051755]
[1741969449058,0.7611,1932.3,1931.7,0.8189]
[1741969449365,5.17618,1932.0,1931.8,0.05175671]
[1741969449532,5.17612,1932.0,1931.7,0.8189]
[1741969449934,5.17612,1932.0,1931.7,5.99565]
[1741969450129,5.17662,1931.8,1931.6,3.517726]
[1741969450348,5.17678,1931.7,1931.6,0.38793744]
[1741969450659,5.17662,1931.8,1931.6,0.38793744]
[1741969451250,5.17662,1931.8,1931.5,0.80446716]
[1741969451556,0.8147,1932.0,1931.5,0.7527]
[1741969451557,5.17694,1931.7,1931.5,0.7527]
[1741969451762,5.17716,1931.6,1931.3,0.783]
[1741969451960,5.17716,1931.6,1931.3,3.783]
[1741969452166,5.17681,1931.7,1931.3,8.96083]
[1741969452933,5.17681,1931.7,1931.4,0.05176718]
[1741969453130,5.534,1931.9,1931.4,8.88945543]
[1741969453362,5.17667,1931.8,1931.4,8.88944543]
[1741969453569,10.71033,1931.9,1931.5,6.06622454]
[1741969453769,15.88679,1931.9,1931.5,6.06622454]
[1741969453938,10.71033,1931.9,1931.5,6.06611454]
[1741969454140,10.71033,1931.9,1931.5,11.24333454]
[1741969454438,10.71033,1931.9,1931.5,6.06611454]
[1741969454439,5.17633,1931.9,1931.5,6.06611454]
[1741969454639,5.17633,1931.9,1931.7,0.7905]
[1741969454860,5.176,1932.0,1931.7,0.7905]
[1741969454861,5.17607,1932.0,1931.7,0.7905]
[1741969455752,10.35224,1932.0,1931.7,0.7905]
[1741969455947,5.17607,1932.0,1931.7,0.7905]
[1741969456142,10.35224,1932.0,1931.7,0.7905]
[1741969456341,10.35224,1932.0,1931.7,2.04690015]
[1741969456574,5.17607,1932.0,1931.7,2.04690015]
[1741969456980,5.17625,1931.9,1931.7,1.25640015]
[1741969457178,5.17651,1931.8,1931.6,6.59661145]
[1741969458156,5.17627,1931.9,1931.6,6.59661145]
[1741969458384,5.17678,1931.7,1931.6,5.99]
[1741969458543,5.17621,1932.0,1931.6,5.99]
[1741969458745,10.35278,1931.9,1931.6,5.99]
[1741969461284,5.17629,1931.9,1931.6,6.66738]
[1741969461445,10.3527,1931.9,1931.6,6.66738]
[1741969461739,10.3527,1931.9,1931.7,0.666738]
[1741969461943,10.35272,1931.9,1931.7,0.666738]
[1741969462480,5.17651,1931.8,1931.7,0.666738]
[1741969462687,5.17651,1931.8,1931.6,6.66738]
[1741969462859,10.35216,1932.0,1931.6,6.7191439]
[1741969463181,5.94512,1932.1,1931.6,6.66738]
[1741969463351,5.94512,1932.1,1931.7,5.17652]
[1741969463552,11.11673,1932.3,1931.9,5.17613]
[1741969463888,5.94136,1932.3,1932.0,0.56936528]
[1741969464260,5.94136,1932.3,1932.0,0.517613]
[1741969464655,5.17545,1932.2,1932.0,0.517613]
[1741969464871,5.17571,1932.1,1932.0,0.517613]
[1741969465070,5.17598,1932.0,1931.9,5.99]
[1741969465270,5.17571,1932.1,1931.9,5.99]
[1741969466361,10.35102,1932.2,1931.9,6.04175548]
[1741969466691,5.17545,1932.2,1931.9,6.04175548]
[1741969466860,5.17582,1932.1,1931.9,5.99]
[1741969467157,5.17582,1932.1,1931.9,7.182646]
[1741969468089,0.766,1932.3,1932.0,5.17591]
[1741969468295,5.17535,1932.3,1931.9,12.358886]
[1741969468462,11.51508,1932.5,1932.0,0.05175175]
[1741969468663,5.17503,1932.4,1932.0,5.17591]
[1741969468989,5.17503,1932.4,1931.9,12.358766]
[1741969468990,5.17526,1932.3,1932.1,0.517591]
[1741969469295,5.17526,1932.3,1932.0,0.05175161]
[1741969469478,5.17526,1932.3,1932.0,5.22765161]
[1741969469665,5.99409,1932.7,1932.3,5.17517]
[1741969469866,5.17456,1932.6,1932.4,0.05174378]
[1741969470100,5.17476,1932.5,1932.1,11.96282]
[1741969470408,5.17514,1932.4,1932.2,1.196282]
[1741969470777,5.17544,1932.2,1932.1,5.99]
[1741969471687,5.17517,1932.3,1932.1,5.99]
[1741969473385,5.17423,1932.7,1932.3,5.1751]
[1741969473604,5.17423,1932.7,1932.3,11.1651]
[1741969473911,5.17423,1932.7,1932.4,1.16825078]
[1741969474692,5.17423,1932.7,1932.4,1.11651]
[1741969475090,5.17423,1932.7,1932.5,0.05174079]
[1741969475694,0.8154,1932.8,1932.5,5.22627079]
[1741969475880,5.98941,1932.8,1932.4,6.29136]
[1741969476083,11.16348,1932.8,1932.5,0.629136]
[1741969476265,5.17421,1932.7,1932.5,0.629136]
[1741969476469,5.98941,1932.8,1932.4,6.29128]
[1741969476677,11.16345,1932.8,1932.4,6.29128]
[1741969477199,5.17447,1932.6,1932.4,1.11651]
[1741969477399,5.17435,1932.7,1932.4,6.34314294]
[1741969477702,5.17435,1932.7,1932.4,1.11651]
[1741969477703,5.17448,1932.6,1932.4,1.11651]
[1741969477903,5.98924,1932.8,1932.4,6.29122]
[1741969478104,5.17384,1932.8,1932.5,0.629122]
[1741969478708,5.17384,1932.8,1932.5,5.803692]
[1741969478871,10.34786,1932.8,1932.5,0.629122]
[1741969479607,5.17411,1932.7,1932.5,0.629122]
[1741969479903,5.17475,1932.5,1932.3,5.99]
[1741969480606,5.17475,1932.5,1932.3,6.04174486]
[1741969480781,11.16237,1932.6,1932.3,6.04174486]
[1741969480976,11.16237,1932.6,1932.3,5.99]
[1741969481171,11.16237,1932.6,1932.3,7.182145]
[1741969481506,5.17439,1932.6,1932.3,7.182145]
[1741969481706,5.17439,1932.6,1932.4,0.05174353]
[1741969481871,10.34894,1932.6,1932.4,0.05174353]
[1741969482072,5.17439,1932.6,1932.4,0.05174353]
[1741969482274,0.8285,1932.8,1932.4,0.05174353]
[1741969482484,5.17447,1932.6,1932.4,0.05174353]
[1741969483002,6.00243,1932.8,1932.4,6.41564985]
[1741969483303,0.8285,1932.8,1932.5,5.17449]
[1741969483504,6.0024,1932.8,1932.5,5.17449]
[1741969483991,5.1741,1932.7,1932.4,1.24089985]
[1741969484789,0.8285,1933.0,1932.5,5.99441]
[1741969485101,5.17423,1932.7,1932.5,0.8198]
[1741969485526,5.17388,1932.8,1932.5,0.8198]
[1741969485816,5.17388,1932.8,1932.6,0.05173767]
[1741969486016,10.3479,1932.8,1932.5,0.8198]
[1741969486220,5.17411,1932.7,1932.5,0.8198]
[1741969486403,1.981185,1933.0,1932.3,14.87716543]
[1741969486404,5.17449,1932.6,1932.3,6.7613]
[1741969486587,5.17473,1932.5,1932.3,6.7613]
[1741969486789,5.17449,1932.6,1932.3,6.04174492]
[1741969486998,10.34904,1932.6,1932.3,5.99]
[1741969487522,5.17464,1932.5,1932.3,5.99]
[1741969487705,5.17464,1932.5,1932.3,7.183651]
[1741969487909,5.17464,1932.5,1932.3,5.99]
[1741969489615,10.34946,1932.5,1932.3,5.99]
[1741969489820,5.17491,1932.4,1932.3,5.99]
[1741969490023,10.34944,1932.5,1932.3,5.99]
[1741969490189,10.34941,1932.5,1932.3,5.99]
[1741969490520,5.17491,1932.4,1932.3,5.99]
[1741969490702,5.17464,1932.5,1932.3,5.99]
[1741969491099,5.17491,1932.4,1932.3,5.99]
[1741969491621,0.8174,1932.3,1932.1,0.38693969]
[1741969491796,5.17544,1932.2,1932.1,0.38693969]
[1741969492820,5.17598,1932.0,1931.9,5.99]
[1741969495529,5.17578,1932.1,1931.9,5.99]
[1741969495717,5.17598,1932.0,1931.9,5.99]
[1741969497224,5.17598,1932.0,1931.7,6.37758118]
[1741969497423,5.17651,1931.8,1931.7,7.6118113]
[1741969497633,5.17651,1931.8,1931.7,6.37758118]
[1741969497926,5.17651,1931.8,1931.7,5.99]
[1741969499032,5.96418,1931.7,1931.6,0.38758118]
[1741969499326,5.17785,1931.3,1931.2,6.37758118]
[1741969500236,5.96525,1931.3,1931.2,6.37758118]
[1741969500403,5.17785,1931.3,1931.2,5.99]
[1741969503049,5.93494,1931.5,1930.9,5.99]
[1741969503050,5.17839,1931.1,1930.9,5.99]
[1741969503204,5.17866,1931.0,1930.9,5.99]
[1741969504118,5.17787,1931.3,1930.9,6.589]
[1741969504315,10.35593,1931.3,1931.0,0.8091]
[1741969504516,5.98407,1931.5,1931.1,5.17826]
[1741969504712,5.17737,1931.5,1931.2,5.1781]
[1741969504937,6.3095,1931.7,1931.3,5.17785]
[1741969505237,5.17721,1931.6,1931.4,0.517785]
[1741969505438,10.69882,1931.7,1931.4,0.517785]
[1741969505733,15.8758,1931.7,1931.4,0.517785]
[1741969505924,5.17732,1931.5,1931.4,0.517785]
[1741969506233,5.17728,1931.6,1931.4,0.517785]
[1741969506432,15.87582,1931.7,1931.4,0.517785]
[1741969506735,10.69884,1931.7,1931.4,0.517785]
[1741969507109,10.69884,1931.7,1931.3,5.99]
[1741969507110,5.17759,1931.4,1931.3,5.99]
[1741969507646,5.17734,1931.5,1931.3,5.99]
[1741969507853,5.17734,1931.5,1931.3,6.04177334]
[1741969508853,5.17734,1931.5,1931.3,0.05177334]
[1741969509054,5.17734,1931.5,1931.2,11.16809]
[1741969509255,5.17734,1931.5,1931.3,1.116809]
[1741969509723,5.17734,1931.5,1931.3,1.16858236]
[1741969509924,5.17715,1931.6,1931.3,1.16858236]
[1741969510272,5.17641,1931.9,1931.4,0.7902]
[1741969510453,5.17643,1931.9,1931.5,5.22906452]
[1741969510656,0.8079,1932.0,1931.5,0.60192645]
[1741969510965,5.17694,1931.7,1931.4,0.7902]
[1741969511174,10.35398,1931.7,1931.4,0.7902]
[1741969511396,5.17713,1931.6,1931.3,1.116809]
[1741969511856,0.81,1931.7,1931.4,0.05177055]
[1741969511857,5.17679,1931.7,1931.4,0.05177055]
[1741969512244,5.17653,1931.8,1931.4,5.22920055]
[1741969512427,5.17653,1931.8,1931.5,0.52292005]
[1741969512626,11.16288,1931.9,1931.5,5.70014005]
[1741969512826,11.16288,1931.9,1931.5,6.46254005]
[1741969513026,5.17687,1931.7,1931.5,0.52292005]
[1741969513227,5.17687,1931.7,1931.3,7.056929]
[1741969513454,5.17652,1931.8,1931.4,0.05176735]
[1741969513671,11.1627,1931.9,1931.5,5.17722]
[1741969513821,5.98625,1931.9,1931.5,5.17722]
[1741969514027,3.7821,1932.1,1931.8,5.1765]
[1741969514259,5.17624,1932.0,1931.6,6.00875]
[1741969514446,10.35248,1932.0,1931.6,7.208625]
[1741969514771,5.17616,1932.0,1931.6,2.031575]
[1741969515075,5.17638,1931.9,1931.6,2.031575]
[1741969515429,5.17673,1931.8,1931.6,1.199875]
[1741969515629,5.17673,1931.8,1931.5,5.99]
[1741969516175,10.35276,1931.9,1931.5,11.1673]
[1741969516389,5.17668,1931.8,1931.5,5.99]
[1741969516673,5.17679,1931.7,1931.5,5.99]
[1741969516879,5.17599,1932.0,1931.5,5.99]
[1741969517174,5.17698,1931.7,1931.5,5.99]
[1741969517374,5.17705,1931.6,1931.5,5.99]
[1741969518152,5.97025,1931.6,1931.5,5.99]
[1741969518361,6.97204925,1931.6,1931.5,5.99]
[1741969518560,12.49204925,1931.6,1931.5,5.99]
[1741969518762,5.17841,1931.1,1930.8,0.7866]
[1741969519003,10.3576,1931.0,1930.7,5.99]
[1741969519186,5.17905,1930.9,1930.7,5.99]
[1741969519361,10.69742,1931.1,1930.5,5.99]
[1741969519565,5.17958,1930.7,1930.5,5.99]
[1741969519774,5.18003,1930.5,1930.2,6.7766]
[1741969519974,5.17992,1930.6,1930.5,0.38723821]
[1741969521962,10.35987,1930.6,1930.2,11.17075]
[1741969522190,5.17992,1930.6,1930.2,11.17069]
[1741969522397,5.17992,1930.6,1930.3,1.117069]
[1741969523575,5.17992,1930.6,1930.3,1.876769]
[1741969523774,5.17992,1930.6,1930.3,1.92856662]
[1741969523980,5.17992,1930.6,1930.3,1.876769]
[1741969524495,10.3599,1930.6,1930.3,1.876769]
[1741969524695,5.18034,1930.4,1930.2,5.99]
[1741969525064,5.18054,1930.3,1930.2,5.99]
[1741969525263,5.18081,1930.2,1930.0,6.7497]
[1741969525467,5.18107,1930.1,1930.0,5.99]
[1741969525774,5.18064,1930.3,1930.0,6.589]
[1741969527123,11.47325,1930.6,1930.0,5.99]
[1741969527425,5.18067,1930.3,1930.0,5.99]
[1741969527619,5.18029,1930.4,1930.0,11.22304632]
[1741969527819,5.18001,1930.5,1930.1,5.18105]
[1741969528021,5.17902,1930.9,1930.2,6.06335573]
[1741969528022,0.7785,1930.9,1930.2,6.06335573]
[1741969528222,5.52,1930.7,1930.3,5.18043]
[1741969528396,10.69961,1930.7,1930.3,5.18043]
[1741969528596,5.52,1930.7,1930.4,5.18023]
[1741969528828,10.69955,1930.7,1930.4,0.05179906]
[1741969528998,5.17955,1930.7,1930.3,8.89243543]
[1741969529203,5.17955,1930.7,1930.4,0.88924354]
[1741969529404,5.17928,1930.8,1930.4,6.06930354]
[1741969529612,5.95748,1930.9,1930.5,5.17999]
[1741969529919,5.95748,1930.9,1930.5,5.23164365]
[1741969530121,10.6988,1931.0,1930.6,5.9343]
[1741969530122,10.69869,1931.0,1930.6,5.9343]
[1741969530308,10.69869,1931.0,1930.6,7.05080436]
[1741969530512,10.69715,1931.2,1930.6,7.05078436]
[1741969530692,5.17849,1931.1,1930.7,5.17931]
[1741969531093,10.35707,1931.1,1930.7,5.17931]
[1741969531305,5.17849,1931.1,1930.7,5.17931]
[1741969531529,5.17849,1931.1,1930.7,6.40231944]
[1741969531890,10.69715,1931.2,1930.8,5.17907]
[1741969532325,10.69715,1931.2,1930.8,5.23082618]
[1741969532536,5.17743,1931.5,1931.1,5.17839]
[1741969532715,0.7961,1931.5,1931.3,5.17775]
[1741969532896,5.17687,1931.7,1931.3,5.695475]
[1741969533224,10.35385,1931.7,1931.3,5.1777]
[1741969533829,5.17687,1931.7,1931.3,5.1777]
[1741969533996,5.17687,1931.7,1931.4,5.17755]
[1741969534197,5.17635,1931.9,1931.6,5.17704]
[1741969534393,5.17606,1932.0,1931.7,0.56946823]
[1741969534599,5.17575,1932.1,1931.7,5.74615823]
[1741969535028,5.17575,1932.1,1931.7,5.22845423]
[1741969535333,5.17575,1932.1,1931.6,5.17687]
[1741969535625,5.98211,1932.3,1931.8,0.8303]
[1741969535825,5.17494,1932.4,1932.0,5.17585]
[1741969536331,5.17424,1932.7,1932.2,5.17526]
[1741969536626,5.517,1932.9,1932.4,5.17478]
[1741969536627,10.34747,1932.9,1932.4,5.17478]
[1741969536823,5.17427,1932.7,1932.3,5.17515]
[1741969537225,5.17427,1932.7,1932.3,10.40191385]
[1741969537428,5.17379,1932.9,1932.5,5.17463]
[1741969537629,10.34759,1932.9,1932.5,5.17463]
[1741969537829,0.8229,1933.0,1932.5,3.71201543]
[1741969537999,5.23158233,1933.2,1932.8,5.17375]
[1741969538195,5.17313,1933.1,1932.8,0.05173346]
[1741969538400,5.17313,1933.1,1932.6,5.96986]
[1741969538595,5.17316,1933.1,1932.7,0.596986]
[1741969538802,5.17411,1932.7,1932.4,1.04019139]
[1741969539025,5.1745,1932.6,1932.3,0.811]
[1741969539226,5.17512,1932.4,1932.0,7.02723842]
[1741969539430,5.17512,1932.4,1932.0,8.0737935]
[1741969539632,5.17558,1932.2,1932.0,0.811]
[1741969539815,5.17558,1932.2,1931.8,0.811]
[1741969540133,5.17518,1932.3,1931.9,5.22799398]
[1741969540343,5.95173,1932.4,1931.9,5.22778398]
[1741969540548,10.68965,1932.5,1931.9,5.22778398]
[1741969540549,5.17467,1932.5,1932.1,5.17562]
[1741969540827,5.17496,1932.4,1932.0,0.811]
[1741969540999,5.17467,1932.5,1932.0,6.585519]
[1741969541395,5.17521,1932.3,1932.0,0.811]
[1741969541629,5.17555,1932.2,1931.8,7.04986271]
[1741969542238,5.17521,1932.3,1931.8,7.04986271]
[1741969542402,5.17571,1932.1,1931.8,0.811]
[1741969542603,5.17638,1931.9,1931.5,11.4894]
[1741969542799,5.17652,1931.8,1931.6,1.14894]
[1741969543250,5.17652,1931.8,1931.5,0.7972]
[1741969543539,5.17652,1931.8,1931.5,6.7872]
[1741969543748,5.17732,1931.5,1931.1,0.7878]
[1741969543906,5.17732,1931.5,1931.1,5.96619]
[1741969544105,5.17732,1931.5,1931.2,0.05177498]
[1741969544310,10.35486,1931.5,1931.1,0.7878]
[1741969544608,5.17766,1931.4,1931.1,0.7878]
[1741969544931,5.17706,1931.6,1931.2,0.0517754]
[1741969545147,5.17748,1931.5,1931.1,5.96617]
[1741969545361,10.35502,1931.5,1931.2,0.05177477]
[1741969545670,10.35502,1931.5,1931.2,0.05177478]
[1741969545870,5.17746,1931.5,1931.2,0.05177478]
[1741969546074,5.17746,1931.5,1931.1,7.080493]
[1741969546377,5.178,1931.3,1930.9,0.7625]
[1741969546678,5.17842,1931.1,1930.8,0.05177973]
[1741969546883,5.17814,1931.2,1930.8,0.05177973]
[1741969547178,0.8142,1931.3,1930.8,0.59936297]
[1741969547342,5.17812,1931.2,1930.8,5.83023908]
[1741969547669,5.17844,1931.1,1930.8,0.59936297]
[1741969547871,5.17866,1931.0,1930.7,6.96795853]
[1741969548073,5.17844,1931.1,1930.7,6.96784853]
[1741969548438,5.17844,1931.1,1930.8,0.05178613]
[1741969548938,5.17844,1931.1,1930.7,6.96784853]
[1741969549135,10.35703,1931.1,1930.7,6.96784853]
[1741969549371,5.17879,1931.0,1930.7,1.97725585]
[1741969549568,5.17932,1930.8,1930.4,6.33288765]
[1741969549871,10.35868,1930.8,1930.4,5.93956]
[1741969550083,5.17962,1930.7,1930.4,0.7595]
[1741969550383,5.17985,1930.6,1930.2,5.98257]
[1741969550584,5.18047,1930.4,1930.2,1.400057]
[1741969550768,10.36087,1930.4,1930.0,5.98301]
[1741969551289,5.1806,1930.3,1930.0,0.8018]
[1741969551640,5.1806,1930.3,1929.8,12.23264785]
[1741969551846,0.7672,1930.5,1929.8,0.8333]
[1741969552140,5.1814,1930.0,1929.6,6.0145]
[1741969552339,5.18193,1929.8,1929.6,0.60145]
[1741969552552,5.1816,1930.0,1929.5,5.18249]
[1741969552770,5.18146,1930.0,1929.5,5.18249]
[1741969553375,5.94844,1930.1,1929.6,0.05181613]
[1741969553674,5.1814,1930.0,1929.6,5.23399613]
[1741969553838,5.18124,1930.1,1929.6,5.23399613]
[1741969554038,5.18124,1930.1,1929.6,5.75739574]
[1741969554270,5.18137,1930.0,1929.6,5.70557961]
[1741969554579,10.36254,1930.1,1929.6,5.70557961]
[1741969554776,5.18137,1930.0,1929.7,0.05181617]
[1741969555274,5.18137,1930.0,1929.6,5.70557961]
[1741969555770,10.36256,1930.1,1929.6,5.70556961]
[1741969555983,5.18124,1930.1,1929.7,5.2338062]
[1741969556139,10.69381,1930.2,1929.8,5.18177]
[1741969556777,5.513,1930.2,1929.8,5.18177]
[1741969556942,5.513,1930.2,1929.9,5.18157]
[1741969557878,10.69384,1930.2,1929.8,11.662467]
[1741969558078,5.513,1930.2,1929.9,5.18141]
[1741969558281,10.69398,1930.2,1929.8,5.96248]
[1741969558663,5.513,1930.2,1929.8,5.96241]
[1741969558873,10.69384,1930.2,1929.8,5.96241]
[1741969559797,7.176039,1930.2,1929.8,0.7807]
[1741969559994,5.1815,1930.0,1929.6,8.96508]
[1741969560170,10.69395,1930.2,1929.7,8.18189]
[1741969560377,5.18117,1930.1,1929.7,8.18189]
[1741969560681,5.513,1930.2,1929.7,3.0]
[1741969560895,5.18198,1929.8,1929.4,0.761]
[1741969561079,5.18198,1929.8,1929.4,11.93385]
[1741969561264,5.18227,1929.7,1929.4,6.751]
[1741969561461,5.18246,1929.6,1929.2,11.93437]
[1741969561962,5.18248,1929.6,1929.2,17.11774]
[1741969562158,10.365,1929.6,1929.2,13.647144]
[1741969562369,6.3266,1929.7,1929.3,5.18307]
[1741969562679,5.514,1929.7,1929.5,5.18248]
[1741969562880,5.18198,1929.8,1929.4,5.18288]
[1741969563286,5.18227,1929.7,1929.4,1.036591]
[1741969563795,5.18227,1929.7,1929.4,6.219531]
[1741969563953,5.18227,1929.7,1929.4,1.036591]
[1741969564585,5.514,1929.9,1929.4,5.99]
[1741969564586,5.1826,1929.6,1929.4,5.99]
[1741969565069,5.18203,1929.8,1929.4,11.17272]
[1741969565598,5.18222,1929.7,1929.4,5.99]
[1741969565789,5.18245,1929.6,1929.4,5.99]
[1741969566594,5.18222,1929.7,1929.4,5.99]
[1741969566773,10.69588,1929.8,1929.4,11.17281]
[1741969567087,5.18219,1929.7,1929.4,11.17281]
[1741969567489,5.18219,1929.7,1929.4,5.99]
[1741969568191,5.18258,1929.6,1929.4,5.99]
[1741969568557,5.18217,1929.7,1929.4,5.99]
[1741969568990,5.18256,1929.6,1929.4,5.99]
[1741969569159,5.18268,1929.5,1929.4,5.99]
[1741969569664,5.99908,1929.5,1929.4,5.99]
[1741969570059,5.18349,1929.2,1929.1,0.01]
[1741969570261,5.18324,1929.3,1929.1,0.01]
[1741969570755,5.18349,1929.2,1929.1,0.01]
[1741969571491,11.48899,1929.2,1929.1,0.01]
[1741969576774,5.513,1929.2,1929.1,0.01]
[1741969576981,5.18324,1929.3,1929.1,0.01]
[1741969577169,10.69602,1929.4,1929.1,0.01]
[1741969577383,5.513,1929.4,1929.1,0.01]
[1741969577698,5.513,1929.4,1929.2,5.18331]
[1741969577900,10.69614,1929.4,1929.1,0.01]
[1741969578199,5.513,1929.4,1929.1,5.19366]
[1741969578398,5.513,1929.4,1929.2,5.18331]
[1741969578712,5.513,1929.4,1929.1,6.231408]
[1741969578998,5.18343,1929.3,1929.1,0.01]
[1741969579198,5.18349,1929.2,1929.1,0.01]
[1741969580181,5.94163,1929.3,1929.1,0.01]
[1741969580498,11.12506,1929.3,1929.1,0.01]
[1741969580699,5.94163,1929.3,1929.1,0.01]
[1741969580867,5.94144,1929.3,1929.1,0.01]
[1741969581072,11.12489,1929.3,1929.1,0.01]
[1741969581305,5.18349,1929.2,1929.1,0.01]
[1741969582704,6.2712,1929.3,1929.1,0.01]
[1741969582911,10.69633,1929.3,1929.1,0.01]
[1741969583203,5.513,1929.3,1929.1,0.01]
[1741969583501,5.18318,1929.4,1929.1,0.01]
[1741969583673,6.882,1929.7,1929.2,5.18338]
[1741969586002,5.18349,1929.2,1929.1,0.01]
[1741969589007,5.99059,1929.2,1929.1,0.01]
[1741969589177,6.54059,1929.2,1929.1,1e-05]
[1741969589378,16.812977,1929.2,1929.1,1e-05]
[1741969589889,20.84731652,1929.2,1929.1,1e-05]
[1741969591113,16.812977,1929.2,1929.1,1e-05]
[1741969591619,16.262977,1929.2,1929.1,1e-05]
[1741969591825,19.79449,1929.2,1929.1,1e-05]
[1741969592023,16.79449,1929.2,1929.1,1e-05]
[1741969592227,10.69449,1929.2,1929.1,1e-05]